[Event "Titled Tuesday Blitz April 4 Early 2023"]
[White "Flores, Diego"]
[Black "Belov, Alexei"]
[WhiteFideId "108049"]
[BlackFideId "4128206"]
[WhiteElo "2613"]
[BlackElo "2644"]
[Result "1-0"]
[Round "09"]
[TimeControl "180+2"]
[Date "2023.04.04"]
[WhiteClock "0:00:09"]
[BlackClock "0:00:10"]

1. c4 {[%clk 0:03:00]}  e6 {[%clk 0:02:59]} 2. Nf3 {[%clk 0:02:53]}  d5 {[%clk 0:02:59]} 3. g3 {[%clk 0:02:53]}  Nf6 {[%clk 0:02:59]} 4. Bg2 {[%clk 0:02:54]}  Be7 {[%clk 0:02:59]} 5. O-O {[%clk 0:02:54]}  O-O {[%clk 0:03:00]} 6. b3 {[%clk 0:02:55]}  c5 {[%clk 0:02:59]} 7. e3 {[%clk 0:02:55]}  Nc6 {[%clk 0:02:57]} 8. Bb2 {[%clk 0:02:39]}  dxc4 {[%clk 0:02:56]} 9. bxc4 {[%clk 0:02:39]}  Qc7 {[%clk 0:02:56]} 10. Nc3 {[%clk 0:02:32]}  a6 {[%clk 0:02:56]} 11. Qe2 {[%clk 0:02:31]}  b6 {[%clk 0:02:56]} 12. d3 {[%clk 0:02:19]}  Bb7 {[%clk 0:02:56]} 13. Ne1 {[%clk 0:02:14]}  Rab8 {[%clk 0:02:52]} 14. f4 {[%clk 0:02:10]}  Rfd8 {[%clk 0:02:52]} 15. f5 {[%clk 0:02:04]}  Ne5 {[%clk 0:02:44]} 16. Bxb7 {[%clk 0:02:00]}  Rxb7 {[%clk 0:02:40]} 17. fxe6 {[%clk 0:01:53]}  fxe6 {[%clk 0:02:39]} 18. a4 {[%clk 0:01:53]}  Qc6 {[%clk 0:02:07]} 19. Ne4 {[%clk 0:01:15]}  Nxe4 {[%clk 0:01:59]} 20. Bxe5 {[%clk 0:01:15]}  Bf6 {[%clk 0:01:49]} 21. Nf3 {[%clk 0:00:36]}  Bxe5 {[%clk 0:01:17]} 22. Nxe5 {[%clk 0:00:37]}  Qd6 {[%clk 0:01:17]} 23. Qb2 {[%clk 0:00:37]}  Nf6 {[%clk 0:01:13]} 24. Rf4 {[%clk 0:00:25]}  Nd7 {[%clk 0:01:02]} 25. Nf7 {[%clk 0:00:25]}  Qe7 {[%clk 0:00:48]} 26. Nxd8 {[%clk 0:00:23]}  Qxd8 {[%clk 0:00:49]} 27. Raf1 {[%clk 0:00:22]}  Nf6 {[%clk 0:00:50]} 28. Qe5 {[%clk 0:00:22]}  Re7 {[%clk 0:00:44]} 29. d4 {[%clk 0:00:20]}  cxd4 {[%clk 0:00:42]} 30. exd4 {[%clk 0:00:20]}  Qc8 {[%clk 0:00:42]} 31. Rxf6 {[%clk 0:00:20]}  gxf6 {[%clk 0:00:41]} 32. Qxf6 {[%clk 0:00:21]}  Rg7 {[%clk 0:00:32]} 33. Qe5 {[%clk 0:00:19]}  Rf7 {[%clk 0:00:29]} 34. Rxf7 {[%clk 0:00:17]}  Kxf7 {[%clk 0:00:29]} 35. c5 {[%clk 0:00:17]}  bxc5 {[%clk 0:00:28]} 36. dxc5 {[%clk 0:00:17]}  Qb7 {[%clk 0:00:28]} 37. Qf4+ {[%clk 0:00:16]}  Ke8 {[%clk 0:00:26]} 38. Qc4 {[%clk 0:00:14]}  Kd7 {[%clk 0:00:22]} 39. Qd4+ {[%clk 0:00:12]}  Ke8 {[%clk 0:00:22]} 40. Kf2 {[%clk 0:00:11]}  Qc6 {[%clk 0:00:21]} 41. Qh8+ {[%clk 0:00:11]}  Ke7 {[%clk 0:00:18]} 42. Qxh7+ {[%clk 0:00:11]}  Kf6 {[%clk 0:00:19]} 43. Qh6+ {[%clk 0:00:11]}  Ke7 {[%clk 0:00:19]} 44. Qg7+ {[%clk 0:00:10]}  Ke8 {[%clk 0:00:19]} 45. Qd4 {[%clk 0:00:10]}  Qh1 {[%clk 0:00:17]} 46. h4 {[%clk 0:00:05]}  Qh2+ {[%clk 0:00:17]} 47. Kf3 {[%clk 0:00:06]}  Qh1+ {[%clk 0:00:17]} 48. Kg4 {[%clk 0:00:06]}  Qf1 {[%clk 0:00:16]} 49. Qe4 {[%clk 0:00:06]}  Qd1+ {[%clk 0:00:15]} 50. Kg5 {[%clk 0:00:06]}  Qc1+ {[%clk 0:00:15]} 51. Kg6 {[%clk 0:00:05]}  Qxc5 {[%clk 0:00:14]} 52. Qxe6+ {[%clk 0:00:06]}  Kd8 {[%clk 0:00:14]} 53. Qf6+ {[%clk 0:00:06]}  Ke8 {[%clk 0:00:14]} 54. h5 {[%clk 0:00:06]}  Qc2+ {[%clk 0:00:13]} 55. Qf5 {[%clk 0:00:06]}  Qb3 {[%clk 0:00:11]} 56. Qe5+ {[%clk 0:00:05]}  Kf8 {[%clk 0:00:10]} 57. Qg7+ {[%clk 0:00:04]}  Ke8 {[%clk 0:00:10]} 58. Qe5+ {[%clk 0:00:05]}  Kf8 {[%clk 0:00:10]} 59. Qf6+ {[%clk 0:00:05]}  Ke8 {[%clk 0:00:10]} 60. Qh8+ {[%clk 0:00:04]}  Ke7 {[%clk 0:00:09]} 61. Qg7+ {[%clk 0:00:05]}  Ke8 {[%clk 0:00:09]} 62. Kh7 {[%clk 0:00:05]}  Qd5 {[%clk 0:00:08]} 63. Qg8+ {[%clk 0:00:06]}  Qxg8+ {[%clk 0:00:07]} 64. Kxg8 {[%clk 0:00:06]}  Ke7 {[%clk 0:00:08]} 65. h6 {[%clk 0:00:07]}  Kf6 {[%clk 0:00:09]} 66. h7 {[%clk 0:00:08]}  Kg5 {[%clk 0:00:10]} 67. h8=Q {[%clk 0:00:08]}  Kg4 {[%clk 0:00:10]} 68. Qc3 {[%clk 0:00:09]} 1-0


[Site "https://www.chess.com"]

[Event "Titled Tuesday Blitz April 4 Early 2023"]
[White "Itgelt, Khuyagtsogt"]
[Black "Yeletsky, Ivan"]
[WhiteFideId "4902912"]
[BlackFideId "24180327"]
[WhiteElo "2227"]
[BlackElo "2422"]
[Result "1-0"]
[Round "09"]
[TimeControl "180+2"]
[Date "2023.04.04"]
[WhiteClock "0:00:17"]
[BlackClock "0:00:02"]

1. d4 {[%clk 0:03:00]}  b6 {[%clk 0:03:00]} 2. c4 {[%clk 0:02:57]}  Nf6 {[%clk 0:03:00]} 3. f3 {[%clk 0:02:55]}  d5 {[%clk 0:02:58]} 4. cxd5 {[%clk 0:02:55]}  Qxd5 {[%clk 0:02:58]} 5. e4 {[%clk 0:02:54]}  Qb7 {[%clk 0:02:59]} 6. Nc3 {[%clk 0:02:54]}  e6 {[%clk 0:02:59]} 7. Bb5+ {[%clk 0:02:49]}  c6 {[%clk 0:02:58]} 8. Bd3 {[%clk 0:02:50]}  Be7 {[%clk 0:02:58]} 9. Nge2 {[%clk 0:02:51]}  O-O {[%clk 0:02:59]} 10. O-O {[%clk 0:02:51]}  c5 {[%clk 0:02:55]} 11. Be3 {[%clk 0:02:47]}  cxd4 {[%clk 0:02:55]} 12. Nxd4 {[%clk 0:02:48]}  e5 {[%clk 0:02:31]} 13. Nb3 {[%clk 0:02:39]}  Be6 {[%clk 0:02:30]} 14. Qe2 {[%clk 0:02:33]}  Rc8 {[%clk 0:02:12]} 15. Kh1 {[%clk 0:02:27]}  a6 {[%clk 0:02:06]} 16. Qf2 {[%clk 0:02:16]}  Nbd7 {[%clk 0:02:05]} 17. Rfd1 {[%clk 0:02:14]}  h6 {[%clk 0:02:00]} 18. Rac1 {[%clk 0:02:11]}  Rc7 {[%clk 0:01:52]} 19. Na4 {[%clk 0:02:06]}  Rxc1 {[%clk 0:01:34]} 20. Rxc1 {[%clk 0:02:07]}  Rb8 {[%clk 0:01:26]} 21. Qf1 {[%clk 0:01:56]}  Bxb3 {[%clk 0:01:12]} 22. axb3 {[%clk 0:01:57]}  b5 {[%clk 0:01:12]} 23. Nc3 {[%clk 0:01:56]}  Bc5 {[%clk 0:01:08]} 24. Nd1 {[%clk 0:01:47]}  Bxe3 {[%clk 0:01:02]} 25. Nxe3 {[%clk 0:01:48]}  g6 {[%clk 0:01:02]} 26. Bb1 {[%clk 0:01:39]}  Kg7 {[%clk 0:01:00]} 27. b4 {[%clk 0:01:39]}  Rc8 {[%clk 0:00:58]} 28. Ba2 {[%clk 0:01:37]}  Nb6 {[%clk 0:00:54]} 29. Rc5 {[%clk 0:01:34]}  Nbd7 {[%clk 0:00:48]} 30. Rc3 {[%clk 0:01:32]}  Rxc3 {[%clk 0:00:42]} 31. bxc3 {[%clk 0:01:33]}  Qb6 {[%clk 0:00:43]} 32. Qd3 {[%clk 0:01:31]}  a5 {[%clk 0:00:43]} 33. Nd5 {[%clk 0:01:26]}  Qf2 {[%clk 0:00:43]} 34. Qb1 {[%clk 0:01:16]}  a4 {[%clk 0:00:39]} 35. c4 {[%clk 0:01:13]}  bxc4 {[%clk 0:00:35]} 36. Bxc4 {[%clk 0:01:14]}  a3 {[%clk 0:00:35]} 37. b5 {[%clk 0:01:06]}  Qb2 {[%clk 0:00:33]} 38. Qxb2 {[%clk 0:01:00]}  axb2 {[%clk 0:00:34]} 39. Nc3 {[%clk 0:01:00]}  Nb6 {[%clk 0:00:29]} 40. Ba2 {[%clk 0:00:59]}  Nfd7 {[%clk 0:00:29]} 41. Kg1 {[%clk 0:00:50]}  Nc5 {[%clk 0:00:29]} 42. Kf1 {[%clk 0:00:43]}  Nba4 {[%clk 0:00:19]} 43. Nb1 {[%clk 0:00:41]}  Nd3 {[%clk 0:00:14]} 44. Bb3 {[%clk 0:00:35]}  Nb6 {[%clk 0:00:15]} 45. Bc2 {[%clk 0:00:30]}  Nb4 {[%clk 0:00:15]} 46. Bb3 {[%clk 0:00:29]}  f5 {[%clk 0:00:16]} 47. Ke2 {[%clk 0:00:27]}  Kf6 {[%clk 0:00:16]} 48. Kd2 {[%clk 0:00:25]}  fxe4 {[%clk 0:00:04]} 49. fxe4 {[%clk 0:00:26]}  Kg5 {[%clk 0:00:05]} 50. Kc3 {[%clk 0:00:26]}  Kf4 {[%clk 0:00:06]} 51. Kxb4 {[%clk 0:00:26]}  Kxe4 {[%clk 0:00:07]} 52. Kc5 {[%clk 0:00:25]}  Nd7+ {[%clk 0:00:06]} 53. Kc6 {[%clk 0:00:23]}  Nb8+ {[%clk 0:00:01]} 54. Kc7 {[%clk 0:00:22]}  Kd4 {[%clk 0:00:01]} 55. Kxb8 {[%clk 0:00:19]}  e4 {[%clk 0:00:02]} 56. b6 {[%clk 0:00:17]}  e3 {[%clk 0:00:03]} 57. Bd1 {[%clk 0:00:17]}  Kc5 {[%clk 0:00:02]} 58. b7 {[%clk 0:00:17]} 1-0


[Site "https://www.chess.com"]

[Event "Titled Tuesday Blitz April 4 Early 2023"]
[White "Seemann, Jakub"]
[Black "Timofeev, Artyom"]
[WhiteFideId "21874697"]
[BlackFideId "4140419"]
[WhiteElo "2364"]
[BlackElo "2586"]
[Result "0-1"]
[Round "09"]
[TimeControl "180+2"]
[Date "2023.04.04"]
[WhiteClock "0:00:01"]
[BlackClock "0:00:42"]

1. d4 {[%clk 0:03:00]}  d5 {[%clk 0:02:59]} 2. c4 {[%clk 0:02:59]}  e6 {[%clk 0:02:58]} 3. Nf3 {[%clk 0:02:59]}  c6 {[%clk 0:02:58]} 4. g3 {[%clk 0:02:54]}  dxc4 {[%clk 0:02:49]} 5. Bg2 {[%clk 0:02:54]}  b5 {[%clk 0:02:48]} 6. O-O {[%clk 0:02:54]}  Bb7 {[%clk 0:02:48]} 7. b3 {[%clk 0:02:55]}  cxb3 {[%clk 0:02:47]} 8. Qxb3 {[%clk 0:02:55]}  Nf6 {[%clk 0:02:42]} 9. a4 {[%clk 0:02:54]}  b4 {[%clk 0:02:36]} 10. a5 {[%clk 0:02:52]}  Qd5 {[%clk 0:02:30]} 11. Nbd2 {[%clk 0:02:46]}  Qxb3 {[%clk 0:02:22]} 12. Nxb3 {[%clk 0:02:47]}  Na6 {[%clk 0:02:23]} 13. Ne5 {[%clk 0:02:46]}  Nd5 {[%clk 0:02:22]} 14. Bd2 {[%clk 0:02:32]}  Bd6 {[%clk 0:02:00]} 15. Rfc1 {[%clk 0:02:30]}  Bxe5 {[%clk 0:01:47]} 16. dxe5 {[%clk 0:02:31]}  Rc8 {[%clk 0:01:47]} 17. Nc5 {[%clk 0:02:25]}  Nxc5 {[%clk 0:01:30]} 18. Rxc5 {[%clk 0:02:26]}  Ba6 {[%clk 0:01:22]} 19. e4 {[%clk 0:02:25]}  Nc3 {[%clk 0:01:21]} 20. Bxc3 {[%clk 0:02:25]}  bxc3 {[%clk 0:01:22]} 21. Rc1 {[%clk 0:02:26]}  Bb5 {[%clk 0:01:17]} 22. R1xc3 {[%clk 0:02:25]}  a6 {[%clk 0:01:17]} 23. Bf3 {[%clk 0:02:24]}  Ke7 {[%clk 0:01:16]} 24. Bd1 {[%clk 0:02:06]}  Rhd8 {[%clk 0:01:15]} 25. Bb3 {[%clk 0:02:06]}  Rd4 {[%clk 0:01:15]} 26. Bc4 {[%clk 0:02:01]}  Rxe4 {[%clk 0:01:03]} 27. Bxb5 {[%clk 0:02:00]}  axb5 {[%clk 0:01:03]} 28. Rxc6 {[%clk 0:02:00]}  Rxc6 {[%clk 0:01:03]} 29. Rxc6 {[%clk 0:02:01]}  Rxe5 {[%clk 0:01:02]} 30. a6 {[%clk 0:01:55]}  Re1+ {[%clk 0:01:02]} 31. Kg2 {[%clk 0:01:55]}  Ra1 {[%clk 0:01:02]} 32. Rb6 {[%clk 0:01:55]}  b4 {[%clk 0:01:02]} 33. h4 {[%clk 0:01:55]}  h5 {[%clk 0:01:01]} 34. Rb7+ {[%clk 0:01:52]}  Kf6 {[%clk 0:01:01]} 35. a7 {[%clk 0:01:52]}  b3 {[%clk 0:01:00]} 36. Rxb3 {[%clk 0:01:48]}  Rxa7 {[%clk 0:00:59]} 37. Rc3 {[%clk 0:01:49]}  Ra4 {[%clk 0:00:59]} 38. Rb3 {[%clk 0:01:49]}  Kg6 {[%clk 0:00:59]} 39. Rc3 {[%clk 0:01:49]}  f6 {[%clk 0:00:59]} 40. Rb3 {[%clk 0:01:50]}  e5 {[%clk 0:00:59]} 41. Rb7 {[%clk 0:01:50]}  Ra8 {[%clk 0:00:58]} 42. Rc7 {[%clk 0:01:51]}  Rg8 {[%clk 0:00:58]} 43. Kf3 {[%clk 0:01:51]}  Kf5 {[%clk 0:00:58]} 44. Ke3 {[%clk 0:01:48]}  g6 {[%clk 0:00:58]} 45. Kf3 {[%clk 0:01:46]}  Ra8 {[%clk 0:00:58]} 46. Rc6 {[%clk 0:01:46]}  Ra3+ {[%clk 0:00:58]} 47. Kg2 {[%clk 0:01:46]}  g5 {[%clk 0:00:58]} 48. hxg5 {[%clk 0:01:47]}  Kxg5 {[%clk 0:00:58]} 49. Rc8 {[%clk 0:01:47]}  Ra4 {[%clk 0:00:57]} 50. Rg8+ {[%clk 0:01:38]}  Kf5 {[%clk 0:00:58]} 51. Rh8 {[%clk 0:01:38]}  Kg6 {[%clk 0:00:58]} 52. Rg8+ {[%clk 0:01:38]}  Kh7 {[%clk 0:00:58]} 53. Rb8 {[%clk 0:01:38]}  h4 {[%clk 0:00:57]} 54. gxh4 {[%clk 0:01:34]}  Rxh4 {[%clk 0:00:56]} 55. Kf3 {[%clk 0:01:33]}  Kg6 {[%clk 0:00:56]} 56. Ke3 {[%clk 0:01:33]}  Kf5 {[%clk 0:00:56]} 57. Rb3 {[%clk 0:01:25]}  Rh3+ {[%clk 0:00:56]} 58. f3 {[%clk 0:01:24]}  Rh2 {[%clk 0:00:55]} 59. Ra3 {[%clk 0:01:25]}  Rb2 {[%clk 0:00:55]} 60. Rc3 {[%clk 0:01:24]}  Ra2 {[%clk 0:00:55]} 61. Rb3 {[%clk 0:01:24]}  Ra4 {[%clk 0:00:55]} 62. Rc3 {[%clk 0:01:23]}  Kg5 {[%clk 0:00:55]} 63. Rb3 {[%clk 0:01:21]}  Kh4 {[%clk 0:00:54]} 64. Rb8 {[%clk 0:01:16]}  Kg5 {[%clk 0:00:53]} 65. Rb3 {[%clk 0:01:13]}  Kf5 {[%clk 0:00:53]} 66. Rc3 {[%clk 0:01:13]}  Ra1 {[%clk 0:00:52]} 67. Rb3 {[%clk 0:01:12]}  Rh1 {[%clk 0:00:52]} 68. Ra3 {[%clk 0:01:11]}  Rh3 {[%clk 0:00:52]} 69. Ra8 {[%clk 0:01:06]}  Ke6 {[%clk 0:00:52]} 70. Ra6+ {[%clk 0:01:06]}  Kf5 {[%clk 0:00:51]} 71. Ra3 {[%clk 0:01:06]}  Kg5 {[%clk 0:00:51]} 72. Ra8 {[%clk 0:01:04]}  f5 {[%clk 0:00:51]} 73. Rg8+ {[%clk 0:00:54]}  Kf6 {[%clk 0:00:51]} 74. Kf2 {[%clk 0:00:50]}  Rh2+ {[%clk 0:00:51]} 75. Kg3 {[%clk 0:00:50]}  Ra2 {[%clk 0:00:51]} 76. Rb8 {[%clk 0:00:49]}  Ra3 {[%clk 0:00:50]} 77. Rf8+ {[%clk 0:00:42]}  Kg6 {[%clk 0:00:49]} 78. Rg8+ {[%clk 0:00:20]}  Kf7 {[%clk 0:00:49]} 79. Rb8 {[%clk 0:00:08]}  e4 {[%clk 0:00:49]} 80. Kf4 {[%clk 0:00:09]}  Rxf3+ {[%clk 0:00:48]} 81. Ke5 {[%clk 0:00:09]}  e3 {[%clk 0:00:47]} 82. Rb1 {[%clk 0:00:04]}  f4 {[%clk 0:00:45]} 83. Kf5 {[%clk 0:00:03]}  e2 {[%clk 0:00:42]} 84. Re1 {[%clk 0:00:03]}  Rf2 {[%clk 0:00:42]} 85. Ke4 {[%clk 0:00:01]}  f3 {[%clk 0:00:42]} 0-1


[Site "https://www.chess.com"]

[Event "Titled Tuesday Blitz April 4 Early 2023"]
[White "Belozerov, Andrei"]
[Black "Zhao, Jun"]
[WhiteFideId "4120213"]
[BlackFideId "8602522"]
[WhiteElo "2373"]
[BlackElo "2547"]
[Result "1-0"]
[Round "09"]
[TimeControl "180+2"]
[Date "2023.04.04"]
[WhiteClock "0:00:17"]
[BlackClock "0:01:14"]

1. e4 {[%clk 0:02:03]}  d5 {[%clk 0:02:58]} 2. exd5 {[%clk 0:02:02]}  Qxd5 {[%clk 0:02:59]} 3. Nc3 {[%clk 0:02:02]}  Qd6 {[%clk 0:02:59]} 4. d4 {[%clk 0:02:02]}  Nf6 {[%clk 0:02:59]} 5. Nf3 {[%clk 0:02:01]}  c6 {[%clk 0:02:59]} 6. g3 {[%clk 0:02:00]}  Bg4 {[%clk 0:02:58]} 7. Bg2 {[%clk 0:01:58]}  e6 {[%clk 0:02:58]} 8. h3 {[%clk 0:01:57]}  Bh5 {[%clk 0:02:58]} 9. O-O {[%clk 0:01:54]}  Nbd7 {[%clk 0:02:58]} 10. Bf4 {[%clk 0:01:40]}  Qb4 {[%clk 0:02:57]} 11. Qd2 {[%clk 0:01:39]}  Be7 {[%clk 0:02:55]} 12. a3 {[%clk 0:01:36]}  Qb6 {[%clk 0:02:54]} 13. b4 {[%clk 0:01:32]}  O-O {[%clk 0:02:54]} 14. g4 {[%clk 0:01:26]}  Bg6 {[%clk 0:02:54]} 15. Nh4 {[%clk 0:01:26]}  Nd5 {[%clk 0:02:50]} 16. Nxg6 {[%clk 0:01:26]}  hxg6 {[%clk 0:02:49]} 17. Bg3 {[%clk 0:01:18]}  a5 {[%clk 0:02:46]} 18. Na4 {[%clk 0:00:46]}  Qb5 {[%clk 0:02:06]} 19. Nc5 {[%clk 0:00:46]}  N7f6 {[%clk 0:02:06]} 20. c3 {[%clk 0:00:40]}  axb4 {[%clk 0:02:01]} 21. axb4 {[%clk 0:00:40]}  b6 {[%clk 0:02:02]} 22. Nd3 {[%clk 0:00:39]}  Nd7 {[%clk 0:01:44]} 23. Nb2 {[%clk 0:00:32]}  N5f6 {[%clk 0:01:39]} 24. Rfc1 {[%clk 0:00:25]}  Rxa1 {[%clk 0:01:27]} 25. Rxa1 {[%clk 0:00:25]}  c5 {[%clk 0:01:24]} 26. dxc5 {[%clk 0:00:19]}  bxc5 {[%clk 0:01:23]} 27. Qd3 {[%clk 0:00:19]}  Qxd3 {[%clk 0:01:16]} 28. Nxd3 {[%clk 0:00:19]}  cxb4 {[%clk 0:01:16]} 29. cxb4 {[%clk 0:00:19]}  Rb8 {[%clk 0:01:14]} 30. Bxb8 {[%clk 0:00:17]} 1-0


[Site "https://www.chess.com"]

[Event "Titled Tuesday Blitz April 4 Early 2023"]
[White "Adla, Diego"]
[Black "Samunenkov, Ihor"]
[WhiteFideId "100072"]
[BlackFideId "14187086"]
[WhiteElo "2377"]
[BlackElo "2457"]
[Result "1-0"]
[Round "09"]
[TimeControl "180+2"]
[Date "2023.04.04"]
[WhiteClock "0:00:33"]
[BlackClock "0:00:02"]

1. c4 {[%clk 0:03:00]}  c5 {[%clk 0:02:58]} 2. Nf3 {[%clk 0:02:56]}  Nc6 {[%clk 0:02:58]} 3. d4 {[%clk 0:02:55]}  cxd4 {[%clk 0:02:59]} 4. Nxd4 {[%clk 0:02:55]}  Nf6 {[%clk 0:03:00]} 5. Nc3 {[%clk 0:02:53]}  e6 {[%clk 0:03:00]} 6. g3 {[%clk 0:02:52]}  Qb6 {[%clk 0:02:57]} 7. Ndb5 {[%clk 0:02:50]}  d5 {[%clk 0:02:55]} 8. Bg2 {[%clk 0:02:23]}  a6 {[%clk 0:01:51]} 9. Be3 {[%clk 0:02:12]}  Qa5 {[%clk 0:01:51]} 10. Nd4 {[%clk 0:02:08]}  Bb4 {[%clk 0:01:42]} 11. O-O {[%clk 0:02:00]}  Bxc3 {[%clk 0:01:41]} 12. bxc3 {[%clk 0:02:00]}  O-O {[%clk 0:01:42]} 13. cxd5 {[%clk 0:01:46]}  Nxd5 {[%clk 0:01:37]} 14. Nxc6 {[%clk 0:01:46]}  bxc6 {[%clk 0:01:37]} 15. Bd4 {[%clk 0:01:41]}  Rd8 {[%clk 0:01:15]} 16. Qb3 {[%clk 0:01:33]}  c5 {[%clk 0:01:12]} 17. Be5 {[%clk 0:01:29]}  Bd7 {[%clk 0:00:53]} 18. c4 {[%clk 0:01:24]}  Nb4 {[%clk 0:00:41]} 19. Bxa8 {[%clk 0:01:21]}  Rxa8 {[%clk 0:00:42]} 20. Bc3 {[%clk 0:01:19]}  Qc7 {[%clk 0:00:21]} 21. Bxb4 {[%clk 0:01:18]}  cxb4 {[%clk 0:00:22]} 22. Qxb4 {[%clk 0:01:19]}  h5 {[%clk 0:00:22]} 23. h4 {[%clk 0:01:17]}  Bc6 {[%clk 0:00:22]} 24. Qc5 {[%clk 0:01:15]}  Rc8 {[%clk 0:00:18]} 25. Rfd1 {[%clk 0:01:14]}  Qb7 {[%clk 0:00:13]} 26. Qxh5 {[%clk 0:01:11]}  Qb4 {[%clk 0:00:08]} 27. Rac1 {[%clk 0:01:07]}  Qb2 {[%clk 0:00:07]} 28. Kf1 {[%clk 0:00:55]}  Qb7 {[%clk 0:00:05]} 29. Qg5 {[%clk 0:00:54]}  Ba4 {[%clk 0:00:04]} 30. Rd8+ {[%clk 0:00:53]}  Rxd8 {[%clk 0:00:04]} 31. Qxd8+ {[%clk 0:00:53]}  Kh7 {[%clk 0:00:05]} 32. Qd3+ {[%clk 0:00:48]}  g6 {[%clk 0:00:04]} 33. Kg1 {[%clk 0:00:47]}  Qb2 {[%clk 0:00:02]} 34. Re1 {[%clk 0:00:42]}  Qxa2 {[%clk 0:00:03]} 35. h5 {[%clk 0:00:43]}  Bc6 {[%clk 0:00:01]} 36. hxg6+ {[%clk 0:00:43]}  fxg6 {[%clk 0:00:02]} 37. Qd4 {[%clk 0:00:41]}  Qc2 {[%clk 0:00:02]} 38. f3 {[%clk 0:00:37]}  a5 {[%clk 0:00:01]} 39. Kf2 {[%clk 0:00:37]}  a4 {[%clk 0:00:01]} 40. Rh1+ {[%clk 0:00:37]}  Kg8 {[%clk 0:00:02]} 41. Qh8+ {[%clk 0:00:33]} 1-0


[Site "https://www.chess.com"]

[Event "Titled Tuesday Blitz April 4 Early 2023"]
[White "Drori, Saar"]
[Black "Xiong, Jeffery"]
[WhiteFideId "2812444"]
[BlackFideId "2047640"]
[WhiteElo "2322"]
[BlackElo "2726"]
[Result "1/2-1/2"]
[Round "09"]
[TimeControl "180+2"]
[Date "2023.04.04"]
[WhiteClock "0:00:16"]
[BlackClock "0:00:32"]

1. e4 {[%clk 0:03:00]}  e6 {[%clk 0:02:58]} 2. d4 {[%clk 0:02:59]}  d5 {[%clk 0:02:58]} 3. exd5 {[%clk 0:03:00]}  exd5 {[%clk 0:02:59]} 4. Nf3 {[%clk 0:03:01]}  Bd6 {[%clk 0:02:59]} 5. Bd3 {[%clk 0:03:01]}  Ne7 {[%clk 0:02:58]} 6. O-O {[%clk 0:03:02]}  Nbc6 {[%clk 0:02:56]} 7. c3 {[%clk 0:02:59]}  O-O {[%clk 0:02:55]} 8. Re1 {[%clk 0:03:00]}  Bf5 {[%clk 0:02:55]} 9. Bg5 {[%clk 0:02:53]}  Qd7 {[%clk 0:02:48]} 10. Qc2 {[%clk 0:02:33]}  Bxd3 {[%clk 0:02:36]} 11. Qxd3 {[%clk 0:02:34]}  Nf5 {[%clk 0:02:35]} 12. Nbd2 {[%clk 0:02:26]}  h6 {[%clk 0:02:30]} 13. Bh4 {[%clk 0:02:26]}  Nxh4 {[%clk 0:02:17]} 14. Nxh4 {[%clk 0:02:27]}  Ne7 {[%clk 0:02:17]} 15. g3 {[%clk 0:02:07]}  Rae8 {[%clk 0:02:17]} 16. Nhf3 {[%clk 0:02:03]}  Ng6 {[%clk 0:02:08]} 17. Rxe8 {[%clk 0:01:55]}  Rxe8 {[%clk 0:02:09]} 18. Re1 {[%clk 0:01:55]}  Rxe1+ {[%clk 0:02:08]} 19. Nxe1 {[%clk 0:01:56]}  c6 {[%clk 0:02:07]} 20. Ng2 {[%clk 0:01:52]}  Qe6 {[%clk 0:02:07]} 21. Ne3 {[%clk 0:01:52]}  Ne7 {[%clk 0:02:08]} 22. Nf3 {[%clk 0:01:47]}  g5 {[%clk 0:02:07]} 23. Kg2 {[%clk 0:01:43]}  f5 {[%clk 0:02:07]} 24. h3 {[%clk 0:01:32]}  Kf7 {[%clk 0:02:06]} 25. c4 {[%clk 0:01:19]}  f4 {[%clk 0:01:40]} 26. cxd5 {[%clk 0:01:14]}  cxd5 {[%clk 0:01:41]} 27. Ng4 {[%clk 0:01:12]}  Kg7 {[%clk 0:01:30]} 28. Nge5 {[%clk 0:01:08]}  fxg3 {[%clk 0:01:30]} 29. fxg3 {[%clk 0:01:07]}  Bxe5 {[%clk 0:01:31]} 30. Nxe5 {[%clk 0:00:59]}  Nc6 {[%clk 0:01:31]} 31. Nxc6 {[%clk 0:00:45]}  bxc6 {[%clk 0:01:21]} 32. g4 {[%clk 0:00:43]}  a5 {[%clk 0:01:18]} 33. b3 {[%clk 0:00:31]}  Qf6 {[%clk 0:01:15]} 34. Qa6 {[%clk 0:00:25]}  Qxd4 {[%clk 0:01:13]} 35. Qxc6 {[%clk 0:00:23]}  Qd2+ {[%clk 0:01:13]} 36. Kf3 {[%clk 0:00:22]}  Qf4+ {[%clk 0:01:11]} 37. Kg2 {[%clk 0:00:22]}  Qe4+ {[%clk 0:00:42]} 38. Kf2 {[%clk 0:00:21]}  Qd4+ {[%clk 0:00:42]} 39. Ke2 {[%clk 0:00:19]}  Qb2+ {[%clk 0:00:42]} 40. Kf3 {[%clk 0:00:16]}  Qd2 {[%clk 0:00:32]} 41. Qd7+ {[%clk 0:00:14]}  Kf6 {[%clk 0:00:32]} 42. Qd6+ {[%clk 0:00:15]}  Kg7 {[%clk 0:00:32]} 43. Qd7+ {[%clk 0:00:15]}  Kf6 {[%clk 0:00:32]} 44. Qd6+ {[%clk 0:00:15]}  Kg7 {[%clk 0:00:32]} 45. Qd7+ {[%clk 0:00:16]} 1/2-1/2


[Site "https://www.chess.com"]

[Event "Titled Tuesday Blitz April 4 Early 2023"]
[White "Maksimovic, Bojan"]
[Black "Al-Tarboush, Ward"]
[WhiteFideId "14408120"]
[BlackFideId "7601450"]
[WhiteElo "2468"]
[BlackElo "2265"]
[Result "1-0"]
[Round "09"]
[TimeControl "180+2"]
[Date "2023.04.04"]
[WhiteClock "0:02:44"]
[BlackClock "0:01:48"]

1. e4 {[%clk 0:03:00]}  c5 {[%clk 0:02:59]} 2. Nf3 {[%clk 0:03:01]}  Nc6 {[%clk 0:03:00]} 3. d4 {[%clk 0:03:02]}  cxd4 {[%clk 0:03:01]} 4. Nxd4 {[%clk 0:03:02]}  Nf6 {[%clk 0:03:01]} 5. Nc3 {[%clk 0:03:03]}  e5 {[%clk 0:03:01]} 6. Ndb5 {[%clk 0:03:03]}  d6 {[%clk 0:03:01]} 7. Bg5 {[%clk 0:03:03]}  a6 {[%clk 0:03:01]} 8. Na3 {[%clk 0:03:03]}  b5 {[%clk 0:03:01]} 9. Bxf6 {[%clk 0:03:04]}  gxf6 {[%clk 0:03:01]} 10. Nd5 {[%clk 0:03:05]}  f5 {[%clk 0:03:01]} 11. Bd3 {[%clk 0:03:05]}  Be6 {[%clk 0:02:55]} 12. O-O {[%clk 0:03:05]}  Bg7 {[%clk 0:02:54]} 13. Qh5 {[%clk 0:03:05]}  f4 {[%clk 0:02:52]} 14. c4 {[%clk 0:03:05]}  b4 {[%clk 0:02:46]} 15. Nc2 {[%clk 0:03:05]}  a5 {[%clk 0:02:45]} 16. Rad1 {[%clk 0:02:57]}  O-O {[%clk 0:02:42]} 17. Ne1 {[%clk 0:02:56]}  Nd4 {[%clk 0:02:39]} 18. Nf3 {[%clk 0:02:55]}  Qd7 {[%clk 0:02:26]} 19. Nxd4 {[%clk 0:02:52]}  Bg4 {[%clk 0:02:13]} 20. Qh4 {[%clk 0:02:52]}  Bxd1 {[%clk 0:01:53]} 21. Nf5 {[%clk 0:02:50]}  Ba4 {[%clk 0:01:48]} 22. Nf6+ {[%clk 0:02:44]} 1-0


[Site "https://www.chess.com"]